{"text_format":"1","workbook":"xlsx","n_sheets":8,"sheets":["Voorblad","Resultaten","Zonnepanelen gegevens","ENE 01 check en score","Informatie bolletjes","Lijsten","Tijdelijke_opslag","Vraag10"],"not_rendered":{"charts":0,"images":3,"macros":1,"external_links":0,"defined_names":87,"comments":1,"pivot_tables":0},"unopened":[],"bounds":{"document_bytes":16777216,"sheet_cells":100000,"rows_first":2000,"rows_last":500,"rows_between":2000,"halvings":0,"cell_chars":16384,"cell_head_chars":4096},"cells_cut":0,"cells_raw":0,"read":"whole","date_system":"1900"}

{"sheet":"Voorblad","index":0,"n_rows":30,"n_cols":3,"rows_kept":30,"cut":false,"hidden":false,"merged":[[27,2,27,3]]}
[]
[]
[]
[]
[]
[]
[]
[]
[]
[]
[]
[]
[]
[]
[]
[]
[]
[]
[]
[]
[]
[]
[]
[]
[]
[]
[]
[null,"Datum","2026-04-17"]
[null,"Versie","1.1"]
[null,"Wijziging","1.1 op 29 april 2026: De formule om een specifieke referentiewaarde bij een compactheid groter dan 1,8 werkte niet voor alle gebruiksfuncties en is gecorrigeerd. "]

{"sheet":"Resultaten","index":1,"n_rows":34,"n_cols":4,"rows_kept":34,"cut":false,"hidden":false,"merged":[[1,1,1,3]]}
[]
[null,"De tool stelt de persoon die verantwoordelijk is voor het invullen een aantal ja/nee-vragen. Als het antwoord op een vraag “nee” is, staat bij die vraag wat de mogelijke vervolgstappen zijn.\n\nOp de outputpagina wordt de cel rood gekleurd als het antwoord “nee” is. Dit betekent dat de methode uit de beoordelingsrichtlijn niet goed is gevolgd, dat niet aan de minimale BENG 1-eis uit de credit ENE 01 is voldaan, dat het vloeroppervlak van het gebouw of industriegedeelte niet klopt met de werkelijke situatie, of dat de BENG 2 waarden uit de BENG-berekening en de berekende BENG 2 uit tool niet overeenkomen. Betreft het laatste is het mogelijk dat deze net niet overeenkomen.\n\nDeze punten moeten worden toegelicht door een expert, zodat de Assessor ze kan controleren. Lees ook goed de toelichtingen bij de uitkomsten en het aantal BREEAM-NL punten."]
[null,"Vraag of waarde","Uitkomst","Toelichting"]
[null,"Projectnaam",{"$f":"Projectnaam","v":0},"Projectnaam van het project in de Assessmenttool"]
[null,"Registratie nummer:",{"$f":"Projectnummer","v":0},"Registratienummer van het project in de Assessmenttool"]
[null,"De exacte bestandnaam van de energieprestatieberekening",{"$f":"Bestandsnaam","v":0},"De energieprestatieberekening die is gebruikt om de tool in te vullen, moet ook als bijlage worden toegevoegd in de Assessmenttool. Als de ingevulde waardes en parameters van de energieprestatie berekening in de Assessmenttool anders zijn dan de waardes en parameters die in de tool zijn ingevuld, dan moet de tool opnieuw worden ingevuld."]
[null,"Naam indiener",{"$f":"Naam_indiener","v":0},"Naam van de persoon verantwoordelijk voor het invullen van de tool."]
[null,"Datum BENG berekening",{"$f":"Datum_indiening","v":"00:00:00"},"Datum waarop de BENG berekening is gemaakt. Deze staat in de BENG berekening zelf."]
[null,"Datum van invullen tool",{"$f":"Datum_beoordeling","v":"00:00:00"},"Datum waarop de tool is ingevuld."]
[null,"Totale vloeroppervlak",{"$f":"'ENE 01 check en score'!E39","v":0},"De optelling van het vloeroppervlak per gebruiksfunctie op basis van de oppervlaktes ingevuld in de BENG berekening."]
[null,"Komt de optelling van het vloeroppervlak per gebruiksfunctie van het project overeen met het vloeroppervlak ingevuld in de Assessmenttool?",{"$f":"Optelling_vloeroppervlak","v":0},"De energieprestatie van het gebouw moet worden berekend voor het hele gebouw. Heb je per gebruiksfunctie een aparte BENG-berekening gemaakt of is er een koel-/vriesfunctie aanwezig? Dan controleert de Assessor of de resultaten van de verschillende energieprestatieberekeningen en het aantal punten per gebruiksfunctie op een duidelijke en correcte manier zijn omgerekend bij ENE 01."]
[null,"Is het industrieoppervlak ingevuld als sportfunctie in de BENG berekening?",{"$f":"IF(Industrieoppervlak_ingevuld=\"\",\"-\",Industrieoppervlak_ingevuld)","v":"-"},"De NTA 8800 biedt geen mogelijkheid om de energieprestatie van de industriefunctie van industriële gebouwen te berekenen. De energieprestatieberekening volgens NTA 8800 wordt uitgevoerd met als referentiegebouw een gebouw met een sportfunctie. Dit referentiegebouw heeft kenmerken die vaak overeenkomen met een industriefunctie."]
[null,"Komt het gebruiksoppervlak dat aangesloten is op het warm tapwatersysteem overeen met het totale oppervlak ingevuld als industrie (sportfunctie)?",{"$f":"BENG_Berekening","v":0},"Voor de industriefunctie moet het energiegebruik voor warmtapwater voor het gehele gebruiksoppervlak worden meegenomen in de ontwerpberekening. "]
[null,"Is in het onderdeel het onderdeel in de BENG-berekening \"Warm tapwater - Industrie\" bij de subkop \"opwekking\" als type opwekker ingevoerd \"gasgestookt warmwatertoestel HRww, CW-klasse 4, leidinglengtes > 3 m?”",{"$f":"BENG_Berekening_watertap","v":0},"Er wordt uitgegaan van de aanwezigheid van een conventionele standaard warmtapwaterinstallatie (invoer: gasgestookt warmwatertoestel HRww, CW-klasse 4, leidinglengtes > 3 m). Dit moet ook meegenomen worden, zelfs als er geen warmtapwaterinstallatie aanwezig is."]
[null,"Totale oppervlak gebruiksfunctie industrie ingevuld als sportfunctie ",{"$f":"'ENE 01 check en score'!E34","v":0},"Oppervlakte ingevuld als industriefunctie als zijnde sportfunctie in de tool."]
[null,"Panelen ingevuld als:",{"$f":"WP_Ingevuld","v":0}," Zonnepanelen worden in vele soorten en maten gemaakt. Het is belangrijk dat het aantal Wattpiek per paneel of Wattpiek per m2 overeenkomt met de productspecificaties."]
[null,"Aantal panelen of totaal oppervlak panelen. (Stuks of aantal m2) ",{"$f":"Vraag10!B19","v":0}]
[null,"Piekvermogen PV-panelen totaal. (kWp) ",{"$f":"Vraag10!F19","v":0},"Het piekvermogen van een PV-systeem is het maximale vermogen dat de zonnepanelen kunnen opwekken onder ideale omstandigheden. Dit wordt uitgedrukt in wattpiek (Wp). Hoe hoger het piekvermogen, hoe meer stroom de zonnepanelen kunnen leveren als de zon fel schijnt."]
[null,"BENG 1 referentie berekend in de tool (kWh/m2) ",{"$f":"'ENE 01 check en score'!F44","v":0},"De BENG 1-waarde in de tool wordt berekend op basis van het ingevulde gebruiksoppervlak en de referentiewaarden die horen bij de gekozen gebruiksfuncties."]
[null,"BENG 1 uit de BENG berekening (kWh/m2) ",{"$f":"Energie_behoefte","v":0},"De BENG 1 waarde ingevuld in de tool op gebaseerd op de BENG 1 waarde uit de BENG berekening."]
[null,"BENG 1 is 10% lager dan referentie (Ja of Nee) ",{"$f":"'ENE 01 check en score'!H70","v":"Ja"},"De BENG 1-waarde moet volgens de BREEAM-NL-criteria minstens 10% lager zijn dan de referentiewaarde. De tool berekent de BENG 1-referentiewaarde op basis van het ingevulde vloeroppervlak en vergelijkt deze met de BENG 1-waarde die is ingevuld in de tool."]
[null,"BENG 2 referentie berekend in de tool (kWh/m2) ",{"$f":"'ENE 01 check en score'!H44","v":0},"De BENG 2-waarde in de tool wordt berekend op basis van het ingevulde gebruiksoppervlak en de referentiewaarden die horen bij de gekozen gebruiksfuncties."]
[null,"BENG 2 berekend in de tool (kWh/m2) ",{"$f":"'ENE 01 check en score'!M79","v":0},"Deze BENG 2-waarde  wordt berekend door het jaarlijkse primaire energiegebruik (inclusief hulpenergie) te verminderen met de hoeveelheid hernieuwbare elektriciteit. Dit resultaat wordt gedeeld door het totale gebruiksoppervlak berekend bij vraag 3."]
[null,"BENG 2 uit de BENG-berekening (kWh/m2) ",{"$f":"Primaire_fossiele_energie","v":0},"De BENG 2-waarde die in de tool is ingevuld, is gebaseerd op de BENG 2-waarde uit de BENG-berekening."]
[null,"Is de berekende BENG 2 waarde uit de tool gelijk aan de BENG 2 waarde uit de BENG-berekening?",{"$f":"IF(ROUND('ENE 01 check en score'!M79,1)<>ROUND(Primaire_fossiele_energie,1),\"Waarde niet gelijk\",\"Waarden gelijk\")","v":"Waarden gelijk"},"De berekende BENG 2-waarde in de tool is gebaseerd op de ingevoerde gegevens en wordt vergeleken met de opgegeven waarde uit de BENG-berekening. Als beide waarden overeenkomen, is de uitkomst “Waarde gelijk”. Bij verschil verschijnt “Waarde niet gelijk”. Er is een kleine marge ingebouwd om minimale afwijkingen op te vangen."]
[null,"BENG 2 minus energievraag warm tapwater industrie (kWh/m2) ",{"$f":"'ENE 01 check en score'!H73","v":0},"De berekende BENG 2-waarde waarbij het jaarlijkse primaire energiegebruik voor warm tapwater in de industriefunctie wordt afgetrokken, is de waarde waarop het aantal behaalde BREEAM-NL punten wordt gebaseerd. Deze aangepaste BENG 2-waarde bepaalt dus de score voor het gebouw of de industriefunctie."]
[null,"Jaarlijkse energiegebruik voor warm tapwater gas (kWh)",{"$f":"Energie_primair","v":0},"Dit is de hoeveelheid energie die in een jaar nodig is om warmtapwater te produceren door middel van gas."]
[null,"Primaire energiegebruik inclusief hulpenergie (kWh)",{"$f":"Energiegebruik_inclusief_hulpenergie","v":0},"Dit is de totale hoeveelheid energie die een gebouw in een jaar nodig heeft, inclusief energie voor verlichting, verwarming, koeling en pompen. Het gaat om de energie vanaf de bron, dus ook wat nodig is om de energie te maken en te vervoeren."]
[null,"Jaarlijkse hoeveelheid hernieuwbare energie voor verwarming (kWh)",{"$f":"Verwarming","v":0},"Dit is de hoeveelheid duurzame energie, zoals van een warmtepomp of zonneboiler, die in een jaar wordt gebruikt voor het verwarmen van het gebouw."]
[null,"Jaarlijkse hoeveelheid hernieuwbare energie voor koeling (kWh)",{"$f":"Tijdelijke_opslag!B18","v":0},"Dit is de hoeveelheid energie die in een jaar nodig is om koude te produceren."]
[null,"Jaarlijkse hoeveelheid hernieuwbare energie voor elektriciteit (kWh)",{"$f":"Tijdelijke_opslag!B17","v":0},"Dit is de hoeveelheid stroom uit hernieuwbare bronnen, zoals zonnepanelen of wind, die in één jaar wordt opgewekt en gebruikt."]
[null,"Compactheid",{"$f":"compactheid","v":0},"Compactheid geeft aan hoe dicht de buitenkant van een gebouw (de schil) is ten opzichte van de inhoud van het gebouw. Een compact gebouw heeft minder buitenoppervlak en verliest daardoor minder warmte."]
[null,"Aantal BREEAM-NL punten (NB)",{"$f":"'ENE 01 check en score'!E94","v":0},"De tool berekent automatisch een aantal punten op basis van de ingevulde waardes en parameters. Je mag de tool alleen gebruiken om het aantal punten voor ENE 01 te bepalen als er één BENG-berekening is gemaakt voor het hele gebouw. Als er alleen een BENG-berekening is gemaakt voor bijvoorbeeld het industriegedeelte, of als er een koel- of vriesfunctie aanwezig is, dan moet de Assessor controleren of de resultaten van de verschillende energieprestatieberekeningen en het aantal punten per gebruiksfunctie op een duidelijke en correcte manier zijn omgerekend, los van deze tool. De Assessor is altijd verantwoordelijk voor het controleren van de oppervlaktes, gebruiksfuncties en andere parameters die zijn ingevuld in de BENG-berekening en in de tool. Ook moet de Assessor nagaan of deze gegevens overeenkomen met wat er is ingevuld in de Assessmenttool."]
[null,"Aantal BREEAM-NL punten (renovatie)",{"$f":"'ENE 01 check en score'!S79","v":0},"De tool berekent automatisch een aantal punten op basis van de ingevulde waardes en parameters. Je mag de tool alleen gebruiken om het aantal punten voor ENE 01 te bepalen als er één BENG-berekening is gemaakt voor het hele gebouw. Als er alleen een BENG-berekening is gemaakt voor bijvoorbeeld het industriegedeelte, of als er een koel- of vriesfunctie aanwezig is, dan moet de Assessor controleren of de resultaten van de verschillende energieprestatieberekeningen en het aantal punten per gebruiksfunctie op een duidelijke en correcte manier zijn omgerekend, los van deze tool. De Assessor is altijd verantwoordelijk voor het controleren van de oppervlaktes, gebruiksfuncties en andere parameters die zijn ingevuld in de BENG-berekening en in de tool. Ook moet de Assessor nagaan of deze gegevens overeenkomen met wat er is ingevuld in de Assessmenttool."]

{"sheet":"Zonnepanelen gegevens","index":2,"n_rows":28,"n_cols":7,"rows_kept":28,"cut":false,"hidden":false,"merged":[[25,3,25,4],[26,3,26,4],[21,5,21,6],[22,5,22,6],[23,5,23,6],[24,5,24,6],[25,5,25,6],[26,5,26,6],[23,3,23,4],[24,3,24,4],[1,1,1,6],[21,1,21,2],[22,1,22,2],[21,3,21,4],[22,3,22,4],[27,3,27,4],[27,5,27,6],[28,1,28,2],[28,3,28,4],[28,5,28,6],[25,1,25,2],[26,1,26,2],[23,1,23,2],[24,1,24,2],[27,1,27,2]]}
[]
[null,"In onderstaande tabel staan de gegevens over het PV-systeem zoals die zijn ingevuld in de tool op basis van de BENG-berekening. Deze informatie is bedoeld voor de Assessor, zodat hij of zij kan controleren of het aantal panelen, het paneeloppervlak en de bijbehorende specificaties en kenmerken, zoals vermogen per paneel of per m², de hellingshoek en de oriëntatie van de PV-systemen, overeenkomen met wat er in werkelijkheid is gerealiseerd."]
[null,{"$f":"Vraag10!A2","v":"Aantal PV-systemen"},{"$f":"Vraag10!B2","v":"Aantal panelen of paneeloppervlak"},{"$f":"Vraag10!C2","v":"Oriëntatie"},{"$f":"Vraag10!D2","v":"Helling"},{"$f":"Vraag10!E2","v":"Vermogen per paneel of m2"},{"$f":"Vraag10!F2","v":"Piekvermogen per PV-systeem"}]
[null,{"$f":"Vraag10!A3","v":"PV-systeem 1"},{"$f":"Vraag10!B3","v":0},{"$f":"Vraag10!C3","v":0},{"$f":"Vraag10!D3","v":0},{"$f":"Vraag10!E3","v":0},{"$f":"Vraag10!F3","v":0}]
[null,{"$f":"Vraag10!A4","v":"PV-systeem 2"},{"$f":"Vraag10!B4","v":0},{"$f":"Vraag10!C4","v":0},{"$f":"Vraag10!D4","v":0},{"$f":"Vraag10!E4","v":0},{"$f":"Vraag10!F4","v":0}]
[null,{"$f":"Vraag10!A5","v":"PV-systeem 3"},{"$f":"Vraag10!B5","v":0},{"$f":"Vraag10!C5","v":0},{"$f":"Vraag10!D5","v":0},{"$f":"Vraag10!E5","v":0},{"$f":"Vraag10!F5","v":0}]
[null,{"$f":"Vraag10!A6","v":"PV-systeem 4"},{"$f":"Vraag10!B6","v":0},{"$f":"Vraag10!C6","v":0},{"$f":"Vraag10!D6","v":0},{"$f":"Vraag10!E6","v":0},{"$f":"Vraag10!F6","v":0}]
[null,{"$f":"Vraag10!A7","v":"PV-systeem 5"},{"$f":"Vraag10!B7","v":0},{"$f":"Vraag10!C7","v":0},{"$f":"Vraag10!D7","v":0},{"$f":"Vraag10!E7","v":0},{"$f":"Vraag10!F7","v":0}]
[null,{"$f":"Vraag10!A8","v":"PV-systeem 6"},{"$f":"Vraag10!B8","v":0},{"$f":"Vraag10!C8","v":0},{"$f":"Vraag10!D8","v":0},{"$f":"Vraag10!E8","v":0},{"$f":"Vraag10!F8","v":0}]
[null,{"$f":"Vraag10!A9","v":"PV-systeem 7"},{"$f":"Vraag10!B9","v":0},{"$f":"Vraag10!C9","v":0},{"$f":"Vraag10!D9","v":0},{"$f":"Vraag10!E9","v":0},{"$f":"Vraag10!F9","v":0}]
[null,{"$f":"Vraag10!A10","v":"PV-systeem 8"},{"$f":"Vraag10!B10","v":0},{"$f":"Vraag10!C10","v":0},{"$f":"Vraag10!D10","v":0},{"$f":"Vraag10!E10","v":0},{"$f":"Vraag10!F10","v":0}]
[null,{"$f":"Vraag10!A11","v":"PV-systeem 9"},{"$f":"Vraag10!B11","v":0},{"$f":"Vraag10!C11","v":0},{"$f":"Vraag10!D11","v":0},{"$f":"Vraag10!E11","v":0},{"$f":"Vraag10!F11","v":0}]
[null,{"$f":"Vraag10!A12","v":"PV-systeem 10"},{"$f":"Vraag10!B12","v":0},{"$f":"Vraag10!C12","v":0},{"$f":"Vraag10!D12","v":0},{"$f":"Vraag10!E12","v":0},{"$f":"Vraag10!F12","v":0}]
[null,{"$f":"Vraag10!A13","v":"PV-systeem 11"},{"$f":"Vraag10!B13","v":0},{"$f":"Vraag10!C13","v":0},{"$f":"Vraag10!D13","v":0},{"$f":"Vraag10!E13","v":0},{"$f":"Vraag10!F13","v":0}]
[null,{"$f":"Vraag10!A14","v":"PV-systeem 12"},{"$f":"Vraag10!B14","v":0},{"$f":"Vraag10!C14","v":0},{"$f":"Vraag10!D14","v":0},{"$f":"Vraag10!E14","v":0},{"$f":"Vraag10!F14","v":0}]
[null,{"$f":"Vraag10!A15","v":"PV-systeem 13"},{"$f":"Vraag10!B15","v":0},{"$f":"Vraag10!C15","v":0},{"$f":"Vraag10!D15","v":0},{"$f":"Vraag10!E15","v":0},{"$f":"Vraag10!F15","v":0}]
[null,{"$f":"Vraag10!A16","v":"PV-systeem 14"},{"$f":"Vraag10!B16","v":0},{"$f":"Vraag10!C16","v":0},{"$f":"Vraag10!D16","v":0},{"$f":"Vraag10!E16","v":0},{"$f":"Vraag10!F16","v":0}]
[null,{"$f":"Vraag10!A17","v":"PV-systeem 15"},{"$f":"Vraag10!B17","v":0},{"$f":"Vraag10!C17","v":0},{"$f":"Vraag10!D17","v":0},{"$f":"Vraag10!E17","v":0},{"$f":"Vraag10!F17","v":0}]
[null,{"$f":"Vraag10!A18","v":"PV-systeem 16"},{"$f":"Vraag10!B18","v":0},{"$f":"Vraag10!C18","v":0},{"$f":"Vraag10!D18","v":0},{"$f":"Vraag10!E18","v":0},{"$f":"Vraag10!F18","v":0}]
[null,{"$f":"Vraag10!A19","v":"Totaal"},{"$f":"Vraag10!B19","v":0},null,null,null,{"$f":"Vraag10!F19","v":0}]
[]
[null,"Vraag of waarde",null,"Uitkomst",null,"Toelichting"]
[null,"Projectnaam",null,{"$f":"Projectnaam","v":0},null,"Projectnaam van het project in de Assessmenttool"]
[null,"Registratie nummer:",null,{"$f":"Projectnummer","v":0},null,"Registratienummer van het project in de Assessmenttool"]
[null,"De exacte bestandnaam van de energieprestatieberekening",null,{"$f":"Bestandsnaam","v":0},null,"De energieprestatieberekening die is gebruikt om de tool in te vullen, moet ook als bijlage worden toegevoegd in de Assessmenttool. Als de ingevulde waardes en parameters van de energieprestatie berekening in de Assessmenttool anders zijn dan de waardes en parameters die in de tool zijn ingevuld, dan moet de tool opnieuw worden ingevuld."]
[null,"Panelen ingevuld als:",null,{"$f":"WP_Ingevuld","v":0},null,"Zonnepanelen worden in vele soorten en maten gemaakt. Het is belangrijk dat het aantal Wattpiek per paneel of Wattpiek per m2 overeenkomt met de productspecificaties."]
[null,"Aantal panelen of totaal oppervlak panelen. (Stuks of aantal m2) ",null,{"$f":"Vraag10!B19","v":0}]
[null,"Piekvermogen PV-panelen totaal. (kWp) ",null,{"$f":"Vraag10!F19","v":0},null,"Het piekvermogen van een PV-systeem is het maximale vermogen dat de zonnepanelen kunnen opwekken onder ideale omstandigheden. Dit wordt uitgedrukt in wattpiek (Wp). Hoe hoger het piekvermogen, hoe meer stroom de zonnepanelen kunnen leveren als de zon fel schijnt."]

{"sheet":"ENE 01 check en score","index":3,"n_rows":163,"n_cols":19,"rows_kept":163,"cut":false,"hidden":true,"merged":[[1,4,1,5],[5,1,5,7],[6,1,6,7],[7,1,7,7],[4,1,4,7],[17,0,18,3],[93,7,93,12],[93,0,93,2],[17,9,18,23],[51,10,52,10],[51,11,52,11],[48,10,50,10],[48,11,50,11],[51,14,54,14],[53,10,54,10],[53,11,54,11],[51,13,54,13],[51,12,54,12]]}
[]
[null,null,null,"LET OP >>>> ","invoervelden",null,null,null,null,"password >>","ENE01"]
[]
[]
["De exacte bestandnaam van de energieprestatieberekening "]
["Projectnaam"]
["Projecnummer"]
["Naam van degene verantwoordelijk voor het invullen van de tool"]
[]
["Checks energieprestatieberekening"]
["1) check indieningsvereisten (aangeleverde docs)",null,null,null,null,null,null,null,null," >  Indien niet OK, ontbrekende gegevens/documenten opvragen"]
["2) check BRL versie"]
["3) check energieprestatiemethodiek (NEN7120, NTA8800)"]
["4) check of industriefunctie wordt berekend als sportfunctie",null,null,null,null,null,null,null,null," >  Indien niet OK, project moet nieuwe berekening aanleveren"]
["5a) check of warmwater industrie geldt voor hele industrieoppervlak",null,null,null,null,null,null,null,null," >  Indien niet OK, project moet nieuwe berekening aanleveren"]
["5b) check of forfaitaire gasgestookte warmwaterinstallatie is toegepast",null,null,null,null,null,null,null,null," >  nee: BRL2020: nieuwe berekening aanleveren, BRL2014: zie 5d) opmerking maken dat assessor controleert of werkelijke  warmwaterinstallatie industrie ingevoerd is"]
["5c) BR2020: check of NIET-industriefuncties een elektrische warmwaterinstallatie hebben",null,null,null,null,null,null,null,null," >  nee,  BRL2020: aparte industrie berekening aanleveren"]
["5d) BRL 2014: als 5b is nee (geen forfaitere ww-installatie) dan opmerken dat 'werkelijke' warmtapwaterinstallatie voor industrie moet zijn toegepast",null,null,null,null,null,null,null,null," >  opmerking gemaakt dat assessor moet controleren of werkelijke  warmwaterinstallatie industrie (evt. met doucheWTW)  ingevoerd en toegepast is (anders nieuwe berekening aanleveren)"]
[]
[]
["Gebruiksoppervlak gebouwfuncties"]
["Referentiewaarden Ene01","toedeling \ngemeenschappelijk",null,"Gebruiks-oppervlak (m2)","Gebruiks-oppervlak + gemeen-schappelijk (m2)","Energie-behoefte (BENG-1)",null,"Primair fossiel (BENG-2)",null,null,null,"Tabel ENE01.1",null,null,null,null,null,"Vraag 3","Vraag 4, oppervlaktes"]
["Bijeenkomst kinderopvang",null,{"$f":"IF(B23=\"x\",D23,0)","v":0},null,{"$f":"IF($C$35*$D$35<>0,D23+C23/$C$35*$D$35,D23)","v":0},{"$f":"IF($H$68<=1.8,160,160+30*($H$68-1.8))","v":160},{"$f":"E23*F23","v":0},70,{"$f":"E23*H23","v":0},null,null,3,0.3]
["Bijeenkomst anders",null,{"$f":"IF(B24=\"x\",D24,0)","v":0},null,{"$f":"IF($C$35*$D$35<>0,D24+C24/$C$35*$D$35,D24)","v":0},{"$f":"IF($H$68<=1.8,90,90+30*($H$68-1.8))","v":90},{"$f":"E24*F24","v":0},60,{"$f":"E24*H24","v":0},null,null,4,0.4]
["Celfunctie",null,0,null,0,{"$f":"IF($H$68<=1.8,160,160+35*($H$68-1.8))","v":160},0,120,0,null,null,5,0.5]
["Gezondheidszorgfunctie met bedden",null,0,null,0,350,0,130,0,null,null,6,0.6]
["Gezondheidszorgfunctie anders",null,0,null,0,{"$f":"IF($H$68<=1.8,90,90+35*($H$68-1.8))","v":90},0,50,0,null,null,7,0.7]
["Laboratorium",null,0,null,0,{"$f":"IF($H$68<=1.8,90,90+30*($H$68-1.8))","v":90},0,80,0,null,null,8,0.8]
["Kantoorfunctie",null,0,null,0,{"$f":"IF($H$68<=1.8,90,90+30*($H$68-1.8))","v":90},0,40,0,null,null,9,0.9]
["Logiesfunctie (in logiesgebouw)",null,0,null,{"$f":"IF($C$35*$D$35<>0,D30+C30/$C$35*$D$35,D30)","v":0},{"$f":"IF($H$68<=1.8,100,100+35*($H$68-1.8))","v":100},0,130,0,null,null,10,1]
["Onderwijsfunctie",null,0,null,0,{"$f":"IF($H$68<=1.8,190,190+30*($H$68-1.8))","v":190},0,70,0]
["Sportfunctie",null,0,null,0,{"$f":"IF($H$68<=1.8,40,40+15*($H$68-1.8))","v":40},0,90,0,null,null,"Tabel ENE01.2"]
["Winkelfunctie",null,0,null,0,{"$f":"IF($H$68<=1.8,70,70+30*($H$68-1.8))","v":70},0,60,0,null,null,"Punten","Reductie primair fossiel (BENG-2) tov grenswaarde"]
["Industriefunctie (sport)",null,0,null,{"$f":"IF($C$35*$D$35<>0,D34+C34/$C$35*$D$35,D34)","v":0},25,{"$f":"E34*F34","v":0},35,{"$f":"E34*H34","v":0},null,null,1,-10,"kWh/m2.jr"]
["Gemeenschappelijke ruimtes (totaal)",{"$f":"COUNTA(B23:B34)","v":0},{"$f":"SUM(C23:C34)","v":0},{"$f":"S35","v":0},null,null,null,null,null,null,null,2,-20,"kWh/m2.jr",null,null,null,"Totaal oppervlak gemeenschappelijke ruimtes",{"$f":"SUM(Antwoorden_vraag_03_opper)","v":0}]
["Gemeenschappelijke ruimtes (NIET industrie)",null,null,null,null,null,null,null,null,null,null,3,-30,"kWh/m2.jr"]
["Gemeenschappelijke ruimtes (INDUSTRIE)",null,null,null,null,null,null,null,null,null,null,4,-40,"kWh/m2.jr"]
[null,null,null,null,null,null,null,null,null,null,null,5,-50,"kWh/m2.jr"]
["Totaal gebruiksoppervlak (m2)",null,null,"CHECK >>>",{"$f":"SUM(E23:E35)","v":0},"BENG-1 REF",null,"BENG-2 REF"]
["Referentiewaarden Ene01 NIET industrie",null,null,null,null,{"$f":"IF(SUM(E23:E33)=0,0,SUM(G23:G33)/SUM(E23:E33))","v":0},null,{"$f":"IF(SUM(E23:E33)=0,0,SUM(I23:I33)/SUM(E23:E33))","v":0}]
["eis minimaal 10% lager",null,null,null,null,{"$f":"F40*90%","v":0}]
["Referentiewaarden Ene01 INDUSTRIE",null,null,null,null,{"$f":"F34","v":25},null,{"$f":"H34","v":35}]
["eis minimaal 10% lager",null,null,null,null,{"$f":"F42*90%","v":22.5}]
["Gewogen refrentiewaarde",null,null,"CHECK >>>",null,{"$f":"IF(E39<>0,($E23*F23+$E24*F24+$E25*F25+$E26*F26+$E27*F27+$E28*F28+$E29*F29+$E30*F30+$E31*F31+$E32*F32+$E33*F33+$E34*F34)/($E39-$E$35),0)","v":0},{"$f":"($E23*G23+$E24*G24+$E25*G25+$E26*G26+$E27*G27+$E28*G28+$E29*G29+$E30*G30+$E31*G31+$E32*G32+$E33*G33+$E34*G34)/$E39","v":{"$error":"#DIV/0!"}},{"$f":"IF(E39<>0,($E23*H23+$E24*H24+$E25*H25+$E26*H26+$E27*H27+$E28*H28+$E29*H29+$E30*H30+$E31*H31+$E32*H32+$E33*H33+$E34*H34)/($E39-$E$35),0)","v":0},null,">",{"$f":"H44*$E$39","v":0},"kWhprim","gewogen waarde excl opp. gemeenschappelijke ruimtes!!"]
["eis minimaal 10% lager",null,null,"CHECK >>>",null,{"$f":"F44*90%","v":0}]
[]
["Check zonnepanelen (zie vraag 10)"]
[null,null,null,null,"panelen of oppervlak","orientatie",null,"helling",null,"vermogen/-paneel of /m2","panelen of paneelopp.","piekvermo-gen (kWp)","panelen of paneelopp.","piekvermo-gen (kWp)","vermogen/ /m2"]
["a) aantal panelen orientatie 1",null,null,null,null,null,null,null,null,null,{"$f":"E49+E50+E51","v":0},{"$f":"K49*J49/1000","v":0}]
["b) aantal panelen orientatie 2"]
["c) aantal panelen orientatie 3"]
["a) paneeloppervlak orientatie 1",null,null,null,null,null,null,null,null,null,{"$f":"E52+E53","v":0},{"$f":"K52*J52/1000","v":0},{"$f":"K52+K54","v":0},{"$f":"L52+L54","v":0},{"$f":"IF(M52=0,0,N52/M52*1000)","v":0}]
["b) paneeloppervlak orientatie 2"]
["c) paneeloppervlak orientatie 3",null,null,null,null,null,null,null,null,null,{"$f":"E54+E55","v":0},{"$f":"K54*J54/1000","v":0}]
["d) paneeloppervlak orientatie 4"]
["a)"]
[{"$f":"CONCATENATE(\"- Er is op basis van de ENE 01 EP-berekening geconstateerd dat een zonPV systeem met \",K49,\" panelen met een vermogen van \",J50,\" Wp per paneel gerealiseerd wordt met een oriëntatie en hellingshoek van \",F49,\", \",F50,,\" en \",F51,\" \",H50,\"º ofwel een systeem met een totaal systeempiekvermogen van \",L49,\" kWp. De assessor moet bij oplevering te controleren of het totaal geplande piekvermogen van minimaal \",L49,\" kWp met de juiste oriëntatie en hellingshoek gerealiseerd is (beoordeling van alleen het aantal zonnepanelen of het zonnepaneeloppervlak volstaat niet). Bij afwijking moet een nieuwe berekening aangeleverd worden.\")","v":"- Er is op basis van de ENE 01 EP-berekening geconstateerd dat een zonPV systeem met 0 panelen met een vermogen van  Wp per paneel gerealiseerd wordt met een oriëntatie en hellingshoek van ,  en  º ofwel een systeem met een totaal systeempiekvermogen van 0 kWp. De assessor moet bij oplevering te controleren of het totaal geplande piekvermogen van minimaal 0 kWp met de juiste oriëntatie en hellingshoek gerealiseerd is (beoordeling van alleen het aantal zonnepanelen of het zonnepaneeloppervlak volstaat niet). Bij afwijking moet een nieuwe berekening aangeleverd worden."}]
["b)"]
[{"$f":"CONCATENATE(\"- Er is op basis van de ENE1 EP-berekening geconstateerd dat een zonPV systeem met \",ROUND($M$52,1),\" m2 panelen met een gemiddeld specifiek vermogen van \",ROUND($O$52,1),\" Wp/m2 gerealiseerd wordt met een oriëntatie en hellingshoek van \",$F$52,\" en \",$F$53,\" \",$H$52,\"º ofwel een systeem met een totaal systeempiekvermogen van \",ROUND($N$52,1),\" kWp. De assessor dient bij oplevering te controleren of het totaal geplande piekvermogen van minimaal \",ROUND($N$52,1),\" kWp met de juiste oriëntatie en helllingshoek gerealiseerd is (beoordeling van alleen het aantal zonnepanelen of het zonnepaneeloppervlak volstaat dus niet). Bij afwijking dient een nieuwe berekening aangeleverd te worden.\")","v":"- Er is op basis van de ENE1 EP-berekening geconstateerd dat een zonPV systeem met 0 m2 panelen met een gemiddeld specifiek vermogen van 0 Wp/m2 gerealiseerd wordt met een oriëntatie en hellingshoek van  en  º ofwel een systeem met een totaal systeempiekvermogen van 0 kWp. De assessor dient bij oplevering te controleren of het totaal geplande piekvermogen van minimaal 0 kWp met de juiste oriëntatie en helllingshoek gerealiseerd is (beoordeling van alleen het aantal zonnepanelen of het zonnepaneeloppervlak volstaat dus niet). Bij afwijking dient een nieuwe berekening aangeleverd te worden."}]
[{"$f":"CONCATENATE(\"- Er is op basis van de ENE 01 EP-berekening geconstateerd dat een zonPV systeem met een oriëntatie en hellingshoek van \",$F$52,\" en \",$F$53,\" \",$H$52,\"º en met een totaal systeempiekvermogen van \",ROUND($L$52,1),\" kWp gerealiseerd wordt. De assessor moet bij oplevering te controleren of het totaal geplande piekvermogen van minimaal \",ROUND($L$52,1),\" kWp met de juiste oriëntatie en hellingshoek gerealiseerd is (beoordeling van alleen het aantal zonnepanelen of het zonnepaneeloppervlak volstaat niet). Bij afwijking moet een nieuwe berekening aangeleverd worden.\")","v":"- Er is op basis van de ENE 01 EP-berekening geconstateerd dat een zonPV systeem met een oriëntatie en hellingshoek van  en  º en met een totaal systeempiekvermogen van 0 kWp gerealiseerd wordt. De assessor moet bij oplevering te controleren of het totaal geplande piekvermogen van minimaal 0 kWp met de juiste oriëntatie en hellingshoek gerealiseerd is (beoordeling van alleen het aantal zonnepanelen of het zonnepaneeloppervlak volstaat niet). Bij afwijking moet een nieuwe berekening aangeleverd worden."}]
[]
[]
["Resultaten en berekening score"]
[null,null,null,null,null,null,null,null,null,"Eprim_tot",null,"  primair energiegebruik inclusief hulpenergie"]
[null,null,null,null,null,null,null,null,null,"Eprim_tot/m2",{"$f":"K64/E39","v":{"$error":"#DIV/0!"}}]
[null,null,null,null,null,null,null,null,null,"Epri_tap_ind",{"$f":"H72","v":0}]
["BRL 2020 NTA8800: gegevens uit BENG berekening",null,null,null,"NIET industrie","INDUSTRIE",null,"ALLE functies",null,"Eprim_cor",{"$f":"K64-K66","v":0}]
["Als/Ag (compactheid)",null,null,null,5,{"$f":"compactheid","v":0},null,null,null,"Epr_cor/m2",{"$f":"IF(E39<>0,K67/E39,0)","v":0}]
["Beng-1"]
["Beng-1 OK/niet OK",null,null,null,{"$f":"IF(E69<=F41,\"OK\",\"X\")","v":"OK"},{"$f":"IF(F69<=F43,\"OK\",\"X\")","v":"OK"},null,{"$f":"IF(H69<=F45,\"Ja\",\"Nee\")","v":"Ja"}]
["Beng-2",null,null,null,null,null,null,null,null,">",{"$f":"H71*E39","v":0}]
["Primaire fossiel energie warmtapwater industrie (kWh)",null,null,null,null,null,null,null,null,null,{"$f":"K79-H72","v":0}]
["Beng-2 minus warmtapwater",null,null,null,null,{"$f":"F71-(F72/$E$34)","v":{"$error":"#DIV/0!"}},null,{"$f":"IF(E39<>0,(K64-K76-H72)/(E39),0)","v":0},null,">",{"$f":"K79-H72","v":0}]
["Beng-2 reductie tov referentie",null,null,null,{"$f":"100%-E71/H40","v":{"$error":"#DIV/0!"}},{"$f":"100%-F73/H42","v":{"$error":"#DIV/0!"}},null,{"$f":"IF(H44<>0,100%-H73/H44,0)","v":0},null,"Eprim_hern_W",null,"jaarlijkse hoeveelheid hernieuwbare energie verwarming"]
["Beng-3",null,null,"CHECK >>>",null,null,null,{"$f":"IF((SUM(K74:K76)+K79)<>0,SUM(K74:K76)/(SUM(K74:K76)+K79),0)","v":0},null,"Eprim_hern_K",null,"jaarlijkse hoeveelheid hernieuwbare energie koeling"]
["Punten primair fossiel energieverbruik",null,null,null,{"$f":"MIN(IF(E74<=0,0,E74/10*100),10)","v":{"$error":"#DIV/0!"}},{"$f":"MIN(IF(F74<=0,0,F74/10*100),10)","v":{"$error":"#DIV/0!"}},null,{"$f":"MIN(IF(H74<=0,0,H74/10*100),10)","v":0},null,"Eprim_hern_E",null,"jaarlijkse hoeveelheid hernieuwbare energie elektriciteit"]
["Punten geen primair fossiel energieverbruik",null,null,null,{"$f":"MIN(IF(E73>=0,0,-E73/10),5)","v":0},{"$f":"MIN(IF(F73>=0,0,-F73/10),5)","v":{"$error":"#DIV/0!"}},null,{"$f":"MIN(IF(H73>=0,0,-H73/10),5)","v":0},null,"Ep_herE/m2",{"$f":"K76/E39","v":{"$error":"#DIV/0!"}},null,null,null,null,null,"Renovatie punten",null,{"$f":"MIN(IF(H74<=0,0,H74/8*100),12)","v":0}]
["TOTAAL PUNTEN ENE01",null,null,null,{"$f":"IF(E70=\"OK\",E76+E77,0)","v":{"$error":"#DIV/0!"}},{"$f":"IF(F70=\"OK\",F76+F77,0)","v":{"$error":"#DIV/0!"}},null,{"$f":"IF(H70=\"Ja\",H76+H77,0)","v":0},null,"Saldo Eprim",{"$f":"K64-(K74+K75)-K76","v":0},"kWh",{"$f":"IF(E39<>0,K78/E39,0)","v":0},"kWh/m2",null,null,null,null,{"$f":"MIN(IF(H73>=0,0,-H73/5),3)","v":0}]
[null,null,null,null,null,null,null,null,null,"Saldo EprimE",{"$f":"K64-K76","v":0},"kWh",{"$f":"IF(E39<>0,K79/E39,0)","v":0},"kWh/m2 = BENG-2",null,null,null,null,{"$f":"S77+S78","v":0}]
["BRL 2014 NTA8800: gegevens uit BENG berekening",null,null,null,null,null,null,null,null,null,null,null,"CHECK"]
["BENG-2 project"]
["BENG-2 eis (bouwbesluit-eis)"]
["Beng-2 project / BENG-2 eis",null,null,null,null,null,null,{"$f":"IF(H82=0,0,H71/H82)","v":0},null,"verbetering:",{"$f":"1-H83","v":1}]
[null,null,null,null,null,null,null,{"$f":"H82","v":0}]
[]
["Punten berekening voor in de assessmenttool"]
[]
[null,null,null,null,"Oppervlakte ","behaalde punten"]
["Alle functies (behalve industrie en koel/vries)",null,null,null,{"$f":"SUM(E23:E33)+E36","v":0},{"$f":"H78","v":0},{"$f":"E89*F89","v":0},"Voor alle functies behalve industrie, op basis van BENG 2 van de energieprestatieberekening "]
["Industriefunctie",null,null,null,{"$f":"E34+E37","v":0},{"$f":"H78","v":0},{"$f":"E90*F90","v":0},"Voor industriefunctie (op basis van checklist of alternatieve berekening)"]
["Koel/vrieshuis",null,null,null,0,0,{"$f":"E91*F91","v":0}]
[]
["Punten in assessmenttool",null,null,null,{"$f":"IF(SUM(E89:E91)=0,0,SUM(G89:G91)/SUM(E89:E91))","v":0}]
["Het aantal punten dient altijd naar beneden te worden afgerond.",null,null,null,{"$f":"ROUNDDOWN(E93,0)","v":0},"rounddown!",null,"   check >> vergelijk met projectberekening"]
[]
[]
["GOEDKEURINGSTEKSTEN NAAR PROJECT",null,null,"(juiste BRL tekst selecteren; in e-mail plakken als platte tekst; @tekst zonnodig verwijderen; bij opmerkingen tbv QA en assessor  niet relevante bullets zonPV verwijderen) "]
[]
["BRL2020"]
[{"$f":"CONCATENATE(\"We hebben het ENE 01 bewijsmateriaal (alternatieve berekeningen voor de industriefunctie) van het project \",$B$6,\" beoordeeld.\")","v":"We hebben het ENE 01 bewijsmateriaal (alternatieve berekeningen voor de industriefunctie) van het project  beoordeeld."}]
["Let op: We hebben daarbij niet gecontroleerd of alle invoerparameters overeenstemmen met de tekeningen en het bestek en op een correcte invoer van deze parameters in de energieprestatieberekening. We gaan daarbij uit van de competentie van de adviseur, de expert en de assessor. We hebben gecontroleerd of de berekening volgens de BRL en het interpretatiedocument methodisch goed uitgevoerd is als alternatieve berekening voor de industriefunctie. De uiteindelijke beoordeling van de energieprestatieberekening berekening, de overeenkomst met de gerealiseerde situatie en de credit als geheel is aan de assessor en onderhavig aan de QA door DGBC. "]
["We hebben geconcludeerd dat de opzet van de berekeningen methodisch overeenkomstig de BRL, het interpretatiedocument en de hulppagina’s is uitgevoerd en dat de opzet van de berekening voor de industriefunctie daarmee akkoord is. "]
["@@@@ We hebben geconcludeerd dat bij de opzet van de berekeningen voor de industriefunctie niet de forfaitaire gasgestookte wamwatervoorziening gekozen is. De opzet van de berekeningen is daaom niet akkoord. Er dient een nieuwe energieprestatieberekening aangeleverd te worden waarin alleen voor de industriefiunctie de forfaitaire wamwatervoorziening is ingevoerd."]
[]
[{"$f":"CONCATENATE(\"Projectnaam + registratie nummer: \",$B$6)","v":"Projectnaam + registratie nummer: "}]
[{"$f":"CONCATENATE(\"Bestandsnaam: \",$B$5)","v":"Bestandsnaam: "}]
[{"$f":"CONCATENATE(\"Datum indiening: \",TEXT($B$7,\"dd/mm/jjj\"))","v":"Datum indiening: 00/01/1900"}]
[{"$f":"A7&\"; \"&Naam_indiener","v":"Projecnummer; "}]
[{"$f":"CONCATENATE(\"BENG-1: \",H69, \" kWh/m2 is kleiner dan \",ROUND(F45,2),\" (90% x \",ROUND(F44,2), \" gewogen referentiewaarde) ✓\")","v":"BENG-1:  kWh/m2 is kleiner dan 0 (90% x 0 gewogen referentiewaarde) ✓"}]
[{"$f":"CONCATENATE(\"BENG-2: \",H71,\" kWh/m2\")","v":"BENG-2:  kWh/m2"}]
[{"$f":"CONCATENATE(\"BENG-2 minus warmtapwater industrie: (\",K64,\" - \",K76,\" - \",H72,\")\",\" / (\",E39,\") = \",ROUND(H73,2),\" kWh/m2  is \",ROUNDDOWN(H77,0),\" punten volgens Tabel ENE01.2\")","v":"BENG-2 minus warmtapwater industrie: ( -  - ) / (0) = 0 kWh/m2  is 0 punten volgens Tabel ENE01.2"}]
[{"$f":"CONCATENATE(\"BENG-2 gewogen referentiewaarde zonder warmtapwater industrie = \",ROUND(H44,2),\" kWh/m2\")","v":"BENG-2 gewogen referentiewaarde zonder warmtapwater industrie = 0 kWh/m2"}]
[{"$f":"CONCATENATE(\"BENG-2 reductie = (1 - (\",ROUND(H73,2),\"/\",ROUND(H44,2),\")*100% = \",ROUND(H74*100,1),\"%  is \",ROUNDDOWN(H76,0),\" punten volgens Tabel ENE01.1\")","v":"BENG-2 reductie = (1 - (0/0)*100% = 0%  is 0 punten volgens Tabel ENE01.1"}]
[{"$f":"CONCATENATE(\"Totaal \",ROUNDDOWN(E94,0),\" punten\")","v":"Totaal 0 punten"}]
[]
["Opmerkingen t.b.v. de QA en de assessor:  "]
[{"$f":"$A$57","v":"- Er is op basis van de ENE 01 EP-berekening geconstateerd dat een zonPV systeem met 0 panelen met een vermogen van  Wp per paneel gerealiseerd wordt met een oriëntatie en hellingshoek van ,  en  º ofwel een systeem met een totaal systeempiekvermogen van 0 kWp. De assessor moet bij oplevering te controleren of het totaal geplande piekvermogen van minimaal 0 kWp met de juiste oriëntatie en hellingshoek gerealiseerd is (beoordeling van alleen het aantal zonnepanelen of het zonnepaneeloppervlak volstaat niet). Bij afwijking moet een nieuwe berekening aangeleverd worden."}]
[{"$f":"$A$59","v":"- Er is op basis van de ENE1 EP-berekening geconstateerd dat een zonPV systeem met 0 m2 panelen met een gemiddeld specifiek vermogen van 0 Wp/m2 gerealiseerd wordt met een oriëntatie en hellingshoek van  en  º ofwel een systeem met een totaal systeempiekvermogen van 0 kWp. De assessor dient bij oplevering te controleren of het totaal geplande piekvermogen van minimaal 0 kWp met de juiste oriëntatie en helllingshoek gerealiseerd is (beoordeling van alleen het aantal zonnepanelen of het zonnepaneeloppervlak volstaat dus niet). Bij afwijking dient een nieuwe berekening aangeleverd te worden."}]
[{"$f":"$A$60","v":"- Er is op basis van de ENE 01 EP-berekening geconstateerd dat een zonPV systeem met een oriëntatie en hellingshoek van  en  º en met een totaal systeempiekvermogen van 0 kWp gerealiseerd wordt. De assessor moet bij oplevering te controleren of het totaal geplande piekvermogen van minimaal 0 kWp met de juiste oriëntatie en hellingshoek gerealiseerd is (beoordeling van alleen het aantal zonnepanelen of het zonnepaneeloppervlak volstaat niet). Bij afwijking moet een nieuwe berekening aangeleverd worden."}]
["- Vanwege netcongestie is de realisatie van zonPV systemen op grootverbruikaansluitingen die deels aan het net terugleveren in veel gebieden van Nederland niet meer toegestaan."]
["- We hebben niet gecontroleerd of de oppervlaktes en gebruiksfuncties ingevuld in de BENG-berekening en meegestuurde documenten overeenkomen met de oppervlaktes en gebruiksfuncties ingevuld in de Assessmenttool. "]
[]
["BRL2014 (NTA 8800)"]
[{"$f":"CONCATENATE(\"We hebben het ENE1 bewijsmateriaal (alternatieve berekeningen voor de industriefunctie) van het project \",$B$6,\" beoordeeld.\")","v":"We hebben het ENE1 bewijsmateriaal (alternatieve berekeningen voor de industriefunctie) van het project  beoordeeld."}]
["Let op: We hebben daarbij niet gecontroleerd of alle invoerparameters overeenstemmen met de tekeningen en het bestek en op een correcte invoer van deze parameters in de energieprestatieberekening. We gaan daarbij uit van de competentie van de adviseur, de expert en de assessor. We hebben gecontroleerd of de berekening volgens de BRL en het interpretatiedocument methodisch goed uitgevoerd is als alternatieve berekening voor de industriefunctie. De uiteindelijke beoordeling van de energieprestatieberekening berekening, de overeenkomst met de gerealiseerde situatie en de credit als geheel is aan de assessor en onderhavig aan de QA door DGBC. "]
["We hebben geconcludeerd dat de opzet van de berekeningen methodisch overeenkomstig de BRL, het interpretatiedocument en de hulppagina’s is uitgevoerd en dat de opzet van de berekening voor de industriefunctie daarmee akkoord is. "]
["@@@@ We hebben geconcludeerd dat bij de opzet van de berekeningen voor de industriefunctie niet de forfaitaire wamwatervoorziening gekozen is maar dat m.b.t. de warmwatervoorziening gekozen is voor een elektrische warmwatervoorziening.  Mits t.b.v. de industriefunctie daadwerkelijk de in de berekening toegepaste elektrische warmwatervoorziening  wordt toegepast is DGBC akkoord met deze opzet van de berekening voor de industriefunctie. "]
[{"$f":"CONCATENATE(\"Projectomschrijving: \",$B$6)","v":"Projectomschrijving: "}]
[{"$f":"CONCATENATE(\"Bestandsnaam: \",$B$5)","v":"Bestandsnaam: "}]
[{"$f":"CONCATENATE(\"Datum indiening: \",TEXT($B$7,\"dd/mm/jjj\"))","v":"Datum indiening: 00/01/1900"}]
[{"$f":"CONCATENATE(\"BENG-2 project: \",$H$71,\" kWh/m2 (met industrie als sportfunctie en forfaitaire warmwatervoorziening)\")","v":"BENG-2 project:  kWh/m2 (met industrie als sportfunctie en forfaitaire warmwatervoorziening)"}]
[{"$f":"CONCATENATE(\"BENG-2 eis  = \",H82,\" kWh/m2 (volgens eis bouwbesluit met industrie als sportfunctie en forfaitaire warmwatervoorziening)\")","v":"BENG-2 eis  =  kWh/m2 (volgens eis bouwbesluit met industrie als sportfunctie en forfaitaire warmwatervoorziening)"}]
[{"$f":"CONCATENATE(\"BENG-2_project/BENG-2_referentie: \",ROUND(H71,2),\"/\",ROUND(H82,2),\" = \",ROUND($H$83,3),\" (BENG-2-verbetering \",ROUND($K$83*100,1),\"%)\")","v":"BENG-2_project/BENG-2_referentie: 0/0 = 0 (BENG-2-verbetering 100%)"}]
[]
["Opmerkingen t.b.v. de QA en de assessor:  "]
["Het betreft een beoordeling op basis van de BRL BREEAM 2014. Er is een NTA8800 (BENG) berekening aangeleverd. Dat impliceert dat de aanvraag van de omgevingsvergunning na 1 januari 2022 heeft plaatsgevonden. In plaats van een EPC-berekening conform de NEN 7120 dient dan een energieprestatieberekening conform NTA 8800 te worden opgesteld. De percentuele verbetering van de energieprestatie wordt dan bepaald voor het primair fossiel energiegebruik (BENG 2) ten opzichte van de eisen uit het bouwbesluit."]
["- @@@@ Bij de opleverassessment dient gecontroleerd te worden of de warmwatervoorziening voor de industriefunctie daadwerkelijk conform de in de energieprestatieberekening opgenomen specificaties opgeleverd is (bv. elektrisch en/of met douche WTW)  t.b.v. het voor de energieprestatieberekening gehanteerde oppervlak met industriefunctie.  "]
[{"$f":"$A$57","v":"- Er is op basis van de ENE 01 EP-berekening geconstateerd dat een zonPV systeem met 0 panelen met een vermogen van  Wp per paneel gerealiseerd wordt met een oriëntatie en hellingshoek van ,  en  º ofwel een systeem met een totaal systeempiekvermogen van 0 kWp. De assessor moet bij oplevering te controleren of het totaal geplande piekvermogen van minimaal 0 kWp met de juiste oriëntatie en hellingshoek gerealiseerd is (beoordeling van alleen het aantal zonnepanelen of het zonnepaneeloppervlak volstaat niet). Bij afwijking moet een nieuwe berekening aangeleverd worden."}]
[{"$f":"$A$59","v":"- Er is op basis van de ENE1 EP-berekening geconstateerd dat een zonPV systeem met 0 m2 panelen met een gemiddeld specifiek vermogen van 0 Wp/m2 gerealiseerd wordt met een oriëntatie en hellingshoek van  en  º ofwel een systeem met een totaal systeempiekvermogen van 0 kWp. De assessor dient bij oplevering te controleren of het totaal geplande piekvermogen van minimaal 0 kWp met de juiste oriëntatie en helllingshoek gerealiseerd is (beoordeling van alleen het aantal zonnepanelen of het zonnepaneeloppervlak volstaat dus niet). Bij afwijking dient een nieuwe berekening aangeleverd te worden."}]
[{"$f":"$A$60","v":"- Er is op basis van de ENE 01 EP-berekening geconstateerd dat een zonPV systeem met een oriëntatie en hellingshoek van  en  º en met een totaal systeempiekvermogen van 0 kWp gerealiseerd wordt. De assessor moet bij oplevering te controleren of het totaal geplande piekvermogen van minimaal 0 kWp met de juiste oriëntatie en hellingshoek gerealiseerd is (beoordeling van alleen het aantal zonnepanelen of het zonnepaneeloppervlak volstaat niet). Bij afwijking moet een nieuwe berekening aangeleverd worden."}]
["- Vanwege netcongestie is de realisatie van zonPV systemen op grootverbruikaansluitingen die deels aan het net terugleveren in veel gebieden van Nederland niet meer toegestaan. We gaan ervan uit dat de expert en adviseur dit correct heeft ingevuld en de Assessor dit heeft gecontroleerd."]
[]
["BRL2014 (NEN7120)",null,"Eptot",null,0]
[null,null,"Epadm",null,0]
[]
[{"$f":"CONCATENATE(\"We hebben het ENE1 bewijsmateriaal (alternatieve berekeningen voor de industriefunctie) van het project \",$B$6,\" beoordeeld.\")","v":"We hebben het ENE1 bewijsmateriaal (alternatieve berekeningen voor de industriefunctie) van het project  beoordeeld."}]
["Let op: We hebben daarbij niet gecontroleerd of alle invoerparameters overeenstemmen met de tekeningen en het bestek en op een correcte invoer van deze parameters in de energieprestatieberekening. We gaan daarbij uit van de competentie van de adviseur, de expert en de assessor. We hebben gecontroleerd of de berekening volgens de BRL en het interpretatiedocument methodisch goed uitgevoerd is als alternatieve berekening voor de industriefunctie. De uiteindelijke beoordeling van de energieprestatieberekening berekening, de overeenkomst met de gerealiseerde situatie en de credit als geheel is aan de assessor en onderhavig aan de QA door DGBC. "]
["We hebben geconcludeerd dat de opzet van de berekeningen methodisch overeenkomstig de BRL, het interpretatiedocument en de hulppagina’s is uitgevoerd en dat de opzet van de berekening voor de industriefunctie daarmee akkoord is. "]
["@@@@ We hebben geconcludeerd dat bij de opzet van de berekeningen voor de industriefunctie niet de forfaitaire wamwatervoorziening gekozen is maar dat m.b.t. de warmwatervoorziening gekozen is voor een elektrische warmwatervoorziening.  Mits t.b.v. de industriefunctie daadwerkelijk de in de berekening toegepaste elektrische warmwatervoorziening  wordt toegepast is DGBC akkoord met deze opzet van de berekening voor de industriefunctie. "]
[{"$f":"CONCATENATE(\"Projectomschrijving: \",$B$6)","v":"Projectomschrijving: "}]
[{"$f":"CONCATENATE(\"Bestandsnaam: \",$B$5)","v":"Bestandsnaam: "}]
[{"$f":"CONCATENATE(\"Datum indiening: \",TEXT($B$7,\"dd/mm/jjj\"))","v":"Datum indiening: 00/01/1900"}]
[{"$f":"CONCATENATE(\"Project EPtot: \",$E$143,\" MJ (met industrie als sportfunctie en forfaitaire warmwatervoorziening)\")","v":"Project EPtot: 0 MJ (met industrie als sportfunctie en forfaitaire warmwatervoorziening)"}]
[{"$f":"CONCATENATE(\"Referentiewaarde Eadm = \",$E$144,\" MJ (volgens eis bouwbesluit met industrie als sportfunctie en forfaitaire warmwatervoorziening)\")","v":"Referentiewaarde Eadm = 0 MJ (volgens eis bouwbesluit met industrie als sportfunctie en forfaitaire warmwatervoorziening)"}]
[{"$f":"CONCATENATE(\"EPtot/EPadm: = \",ROUND($E$143/$E$144,3),\" (EP-verbetering \",ROUND((1-$E$143/$E$144)*100,1),\" %)\")","v":{"$error":"#DIV/0!"}}]
[]
["Opmerkingen t.b.v. de QA en de assessor:  "]
["Het betreft een beoordeling op basis van de BRL BREEAM 2014. Er is een NEN7120 EPC berekening aangeleverd. Dat impliceert dat de aanvraag omgevingsvergunning vóór 1 januari 2022 gedaan is. Bij BRL 2014 projecten met een aanvraag omgevingsvergunning ná 1 januari 2022 moet in plaats van een EPC-berekening conform de NEN 7120 een energieprestatieberekening conform NTA 8800 te worden opgesteld. "]
["- @@@@ Bij de opleverassessment dient gecontroleerd te worden of de warmwatervoorziening voor de industriefunctie daadwerkelijk conform de in de energieprestatieberekening opgenomen specificaties opgeleverd is (bv. elektrisch en/of met douche WTW)  t.b.v. het voor de energieprestatieberekening gehanteerde oppervlak met industriefunctie.  "]
[{"$f":"$A$57","v":"- Er is op basis van de ENE 01 EP-berekening geconstateerd dat een zonPV systeem met 0 panelen met een vermogen van  Wp per paneel gerealiseerd wordt met een oriëntatie en hellingshoek van ,  en  º ofwel een systeem met een totaal systeempiekvermogen van 0 kWp. De assessor moet bij oplevering te controleren of het totaal geplande piekvermogen van minimaal 0 kWp met de juiste oriëntatie en hellingshoek gerealiseerd is (beoordeling van alleen het aantal zonnepanelen of het zonnepaneeloppervlak volstaat niet). Bij afwijking moet een nieuwe berekening aangeleverd worden."}]
[{"$f":"$A$59","v":"- Er is op basis van de ENE1 EP-berekening geconstateerd dat een zonPV systeem met 0 m2 panelen met een gemiddeld specifiek vermogen van 0 Wp/m2 gerealiseerd wordt met een oriëntatie en hellingshoek van  en  º ofwel een systeem met een totaal systeempiekvermogen van 0 kWp. De assessor dient bij oplevering te controleren of het totaal geplande piekvermogen van minimaal 0 kWp met de juiste oriëntatie en helllingshoek gerealiseerd is (beoordeling van alleen het aantal zonnepanelen of het zonnepaneeloppervlak volstaat dus niet). Bij afwijking dient een nieuwe berekening aangeleverd te worden."}]
[{"$f":"$A$60","v":"- Er is op basis van de ENE 01 EP-berekening geconstateerd dat een zonPV systeem met een oriëntatie en hellingshoek van  en  º en met een totaal systeempiekvermogen van 0 kWp gerealiseerd wordt. De assessor moet bij oplevering te controleren of het totaal geplande piekvermogen van minimaal 0 kWp met de juiste oriëntatie en hellingshoek gerealiseerd is (beoordeling van alleen het aantal zonnepanelen of het zonnepaneeloppervlak volstaat niet). Bij afwijking moet een nieuwe berekening aangeleverd worden."}]
["- Vanwege netcongestie is de realisatie van zonPV systemen op grootverbruikaansluitingen die deels aan het net terugleveren in veel gebieden van Nederland niet meer toegestaan."]

{"sheet":"Informatie bolletjes","index":4,"n_rows":28,"n_cols":4,"rows_kept":28,"cut":false,"hidden":true,"merged":[]}
["Vraag","Tekst",null,"Vraag tekst"]
["Voorblad","asdas",null,"De Controle Alternatieve BENG industrie tool is niet bedoeld om het aantal BREEAM-punten voor energiecredits te berekenen. De tool is een hulpmiddel voor het projectteam en de Assessor om te controleren of de alternatieve BENG-berekening is uitgevoerd volgens de methode die in de beoordelingsrichtlijn staat beschreven."]
[1,"Als het antwoord op deze vraag nee is en er voor het project een EPC berekening is gemaakt of er geregistreerd is met een oudere Beoordelingsrichtlijn dan Nieuwbouw 2020, dan kan deze tool niet worden gebruikt. Stuur je alternatieve EPC-berekening en de benodigde documenten zoals beschreven in de methodiek naar helpdesk@dgbc.nl",null,"Is de BENG-berekening gemaakt voor een project geregistreerd met de beoordelingsrichtlijn Nieuwbouw 2020 of Nieuwbouw en renovatie utiliteit v6.1.1?"]
[2,"Leeg",null,"2.  Vul hier onderstaande gegevens in"]
[3,"Vul hier de oppervlaktes in die in de BENG-berekening zijn gekoppeld aan een gebruiksfunctie. Je kunt losse waarden invullen, maar ook een formule gebruiken, bijvoorbeeld: 100,45+345,9.\n\nHet totale oppervlak per gebruiksfunctie wordt automatisch berekend en verschijnt achter de formule.",null,"Vul de gebruiksfuncties in die van toepassing zijn op het project"]
[4,"Soms zijn er gemeenschappelijke ruimtes, zoals verbindingsruimtes of algemene ruimtes. Als deze nog niet zijn verdeeld over de gebruiksfuncties en niet zijn ingevuld bij vraag 3, dan kan dat alsnog in de tool. Vul bij vraag 4 het totale oppervlak gemeenschappelijke en/of algemene ruimtes in, bijvoorbeeld als optelsom: 100+200. Daarna je de functies aan waarover het oppervlak moet worden verdeeld. De tool verdeelt dit automatisch naar verhouding over de gekozen functies.\nIn de afbeelding hieronder zijn de oppervlaktes in het groene kader ingevuld bij vraag 3. Het oppervlak in het oranje kader (500,5 m²) is ingevuld in het vakje. Daarna zijn “bijeenkomst overig” en “kantoor” aangevinkt.",null,"Zijn er gemeenschappelijke ruimtes of algemene ruimtes als rekenzone ingevuld in de BENG-berekening?"]
[5,"De energieprestatie van het gebouw moet worden berekend voor het hele gebouw. Heb je per gebruiksfunctie een aparte BENG-berekening gemaakt of is er een koel-/vriesfunctie aanwezig. Dan controleert de Assessor of de resultaten van de verschillende energieprestatieberekeningen en het aantal punten per gebruiksfunctie op een duidelijke en correcte manier zijn omgerekend bij ENE 01.",null,"Komen de oppervlaktes per gebruiksfunctie ingevuld in de BENG berekening overeen met de daadwerkelijke oppervlaktes van het project?"]
[6,"De NTA 8800 biedt geen mogelijkheid om de energieprestatie van de industriefunctie van industriële gebouwen te berekenen. De energieprestatieberekening volgens NTA 8800 wordt uitgevoerd met als referentiegebouw een gebouw met een sportfunctie. Dit referentiegebouw heeft kenmerken die vaak overeenkomen met een industriefunctie. In de BENG-berekening kan dit eruit zien als als in onderstaande afbeelding.",null,"Is het industrieoppervlak ingevuld als sportfunctie in de BENG berekening?"]
[7,"Voor de industriefunctie moet het energiegebruik voor warmtapwater voor het gehele gebruiksoppervlak worden meegenomen in de ontwerpberekening. Bij het onderdeel \"Warm tapwater - Industrie\" controleer je of het volledige oppervlak industriefunctie ingevuld als sportfunctie is aangesloten op een warmtapwater installatie. \nZie afbeelding hieronder",null,"Ga naar het onderdeel in de BENG-berekening \"Warm tapwater - Industrie\". Komt het gebruiksoppervlak dat aangesloten is op het warm tapwatersysteem overeen met het totale oppervlak ingevuld als industrie (sportfunctie)?"]
[8,"Er wordt uitgegaan van de aanwezigheid van een conventionele standaard warmtapwaterinstallatie (invoer: gasgestookt warmwatertoestel HRww, CW-klasse 4, leidinglengtes > 3 m). Dit moet ook meegenomen worden, zelfs als er geen warmtapwaterinstallatie aanwezig is.",null,"Is in het onderdeel in de BENG-berekening \"Warm tapwater - Industrie\" bij de subkop \"opwekking\" als type opwekker ingevoerd \"gasgestookt warmwatertoestel HRww, CW-klasse 4, leidinglengtes > 3 m\"?"]
[9,"Een reguliere maat voor zonnepanelen in Nederland is ongeveer 1.6 m2 per zonnepaneel. Zonnepanelen worden in vele soorten en maten gemaakt. Het is belangrijk dat het aantal Wattpiek per paneel of Wattpiek per m2 overeenkomt met de productspecificaties. In de afbeelding hieronder is te zien dat het aantal pv panelen is ingevuld als Wp/paneel.",null,"Ga naar het onderdeel “PV 1” in de BENG berekening. Is het aantal panelen ingevuld als Wp/paneel , als Wp/m2 of zijn er PV-systemen ingevuld als Wp/paneel & Wp/m2."]
[10,"Geef aan hoeveel systemen er zijn en vul daarna de andere gegevens in.",null,"Vul de volgende tabel in op basis van de informatie bij \"PV 1\" in de BENG berekening"]
[11,"De energiebehoefte (BENG 1) van het gebouw moet worden afgelezen uit de BENG-berekening, zoals weergegeven in de onderstaande afbeelding (zie oranje rechthoek).",null,"Ga in de BENG berekening naar het onderdeel \"Resultaten\" en vul de volgende velden in."]
[12,"De primaire fossiele energie (BENG 2) van het gebouw moet worden afgelezen uit de BENG-berekening, zoals weergegeven in de onderstaande afbeelding (zie groene rechthoek).",null,"Wat is de primaire fossiele energie (BENG 2) in kWh/m2 van het gebouw?"]
[13,"In het referentiegebouw met een sportfunctie is een grote vraag naar warm tapwater opgenomen. Bij het bepalen van het primair fossiel energiegebruik mag de energie die nodig is voor deze fictieve warmwatervraag worden afgetrokken van het resultaat van de energieprestatieberekening. In de afbeelding hieronder zie je in de groene rechthoek de hoeveelheid primaire energie die hoort bij de productie van warm tapwater. Er is hierbij aangenomen dat gas wordt gebruikt om warm tapwater te maken voor het industrieoppervlak.",null,"Ga in de BENG-berekening binnen het onderdeel \"Resultaten\" naar het subonderdeel \"Jaarlijkse hoeveelheid energiegebruik voor de energiefunctie volgens NTA 8800\". Vul het jaarlijkse primaire energiegebruik in voor warm tapwater. Vul alleen het gasverbruik in, en geef dit op in kWh"]
[14,"Zie de afbeelding. De groene rechthoek geeft in deze afbeelding het getal aan dat moet worden ingevuld.",null,"Ga in de BENG-berekening binnen het onderdeel \"Resultaten\" naar het subonderdeel \"Jaarlijkse karakteristieke energiegebruik volgens NTA 8800\". Vul het primaire energiegebruik inclusief hulpenergie in kWh in"]
[15,"Ga in de BENG-berekening binnen het onderdeel \"Resultaten\" naar het subonderdeel \" Jaarlijkse hoeveelheid hernieuwbare energie volgens NTA 8800\" en vul de volgende velden in.",null,"Vul de hoeveelheid hernieuwbare energie volgens de NTA 8800 in kWh voor verwarming in. "]
[16,"De groene rechthoek geeft in deze afbeelding het getal aan dat moet worden ingevuld.\nZie de afbeelding. ",null,"Ga in de BENG-berekening binnen het onderdeel \"Resultaten\" naar het subonderdeel \"Oppervlakten\". \nVul de compactheid in."]
[17,"Je bent klaar met invullen",null,"Klik op 'Gereed' om verder te gaan"]
[18]
[19]
["Vraag 5a",null,null,"Er moet door het projectteam een notitie toegevoegd bij de relevante credit op welke manier de energieprestatie en het bijbehorende puntenaantal is berekend voor het gehele gebouw."]
["Vraag4b",null,null,"Vul het aantal vierkante meter vloeroppervlak van de gemeenschappelijke ruimtes in en vink de aanwezige gebruiksfuncties aan."]
["Vraag 6b",null,null,"Maak een nieuwe BENG-berekening waarbij het industriegedeelte is ingevuld als sportfunctie."]
["Vraag 8b",null,null,"Let op! Als in de BENG-berekening bij \"Warm tapwater - Industrie\" een elektrische opwekker wordt ingevuld, dan is het niet mogelijk om de energie die nodig is voor het verwarmen van de fictieve warmtapwatervraag voor het industrie gedeelte op de juiste manier af te trekken van het totaal energiebehoefte voor het verwarmen van warmtapwater. Het invullen van een elektrische opwekker is methodisch niet fout, maar het zorgt er wel voor dat er meer hernieuwbare energie nodig is om een verbetering ten opzichte van de referentiewaarde aan te tonen."]
["Vraag 7b",null,null,"Maak een nieuwe BENG-berekening waarbij het volledige industriegedeelte is aangesloten op het warm tapwatersysteem"]
["Vraag 10b",null,null,"Hoeveel verschillende oriëntaties hebben de PV-paneelsystemen?"]
["Vraag 4c",null,null,"Totaal gemeenschappelijke oppervlakten"]

{"sheet":"Lijsten","index":5,"n_rows":30,"n_cols":10,"rows_kept":30,"cut":false,"hidden":true,"merged":[]}
["Orientatie",null,null,"Aantal PV Systemen",null,null,"Leeg te maken cellen","Standaard waarde",null,"Te verbergen tabbladen"]
["Noord",null,null,16,null,null,"Aanwezig",null,null,"ENE 01 check en score"]
["Noord-oost",null,null,null,null,null,"Antwoorden_vraag_03",null,null,"Informatie bolletjes"]
["Noord-west",null,null,"Hoogte tekstvak",null,null,"Antwoorden_vraag_03_opper",null,null,"Lijsten"]
["Oost",null,null,220,null,null,"BENG_Berekening",null,null,"Tijdelijke_opslag"]
["Zuid",null,null,null,null,null,"BENG_Berekening_watertap",null,null,"Vraag10"]
["Zuid-oost",null,null,null,null,null,"BENG_Vraag_01"]
["Zuid-west",null,null,null,null,null,"Bestandsnaam"]
["West",null,null,null,null,null,"Compactheid"]
["Horizontaal",null,null,null,null,null,"Datum_beoordeling"]
[null,null,null,null,null,null,"Datum_indiening"]
[null,null,null,null,null,null,"Electriciteit"]
["WP's",null,null,null,null,null,"Energie_behoefte"]
["Wp/paneel",null,null,null,null,null,"Energie_primair"]
["Wp/m2",null,null,null,null,null,"Energiegebruik_inclusief_hulpenergie"]
["Wp/paneel & Wp/m2",null,null,null,null,null,"Gemeenschappelijke_JANEE"]
[null,null,null,null,null,null,"Industrieoppervlak_ingevuld"]
[null,null,null,null,null,null,"Koeling"]
[null,null,null,null,null,null,"Naam_indiener"]
[null,null,null,null,null,null,"Oppervlakte"]
[null,null,null,null,null,null,"Optelling_vloeroppervlak"]
[null,null,null,null,null,null,"Overzicht_panelen"]
[null,null,null,null,null,null,"Primaire_fossiele_energie"]
[null,null,null,null,null,null,"Projectnaam"]
[null,null,null,null,null,null,"Projectnummer"]
[null,null,null,null,null,null,"Verwarming"]
[null,null,null,null,null,null,"WP_Aantal",1]
[null,null,null,null,null,null,"WP_Ingevuld"]
[null,null,null,null,null,null,"Vraag_10_antwoorden"]
[null,null,null,null,null,null,"Vraag4_ingevuld"]

{"sheet":"Tijdelijke_opslag","index":6,"n_rows":19,"n_cols":4,"rows_kept":19,"cut":false,"hidden":true,"merged":[]}
["Veld","Antwoord","Vraag","Verwijst naar"]
["BENG Berekening (Ja / Nee)",null,"Vraag 7"]
["Datum BENG berekening:"]
["Datum van invullen tool:"]
["Optelling van het vloeroppervlak ",null,"Vraag 4"]
["Gemeenschappelijke oppervlakte"]
["Industrieoppervlak ingevuld",null,"Vraag 6"]
["BENG Berekening (Ja / Nee)",null,"Vraag 1"]
["BENG-berekening \"Warm tapwater "]
["WP ingevuld als"]
["WP aantal",1]
["Energie behoefte",{"$f":"Energie_behoefte","v":0},null,"ENE 01 check en score, cel H69"]
["Primaire fossiele energie",{"$f":"Primaire_fossiele_energie","v":0},null,"ENE 01 check en score, cel H71"]
["Energie primair",{"$f":"Energie_primair","v":0},null,"ENE 01 check en score, cel H72"]
["Energiegebruik inclusief hulpenergie",{"$f":"Energiegebruik_inclusief_hulpenergie","v":0},null,"ENE 01 check en score, cel K64"]
["Verwarming",{"$f":"Verwarming","v":0},null,"ENE 01 check en score, cel K74"]
["Electriciteit",{"$f":"Electriciteit","v":0},null,"ENE 01 check en score, cel K76"]
["Koeling",{"$f":"Koeling","v":0},null,"ENE 01 check en score, cel K75"]
["Compactheid"]

{"sheet":"Vraag10","index":7,"n_rows":64,"n_cols":6,"rows_kept":64,"cut":false,"hidden":true,"merged":[]}
[]
["Aantal PV-systemen","Aantal panelen of paneeloppervlak","Oriëntatie","Helling","Vermogen per paneel of m2","Piekvermogen per PV-systeem"]
["PV-systeem 1",null,null,null,null,{"$f":"(B3*E3)/1000","v":0}]
["PV-systeem 2",null,null,null,null,{"$f":"(B4*E4)/1000","v":0}]
["PV-systeem 3",null,null,null,null,0]
["PV-systeem 4",null,null,null,null,0]
["PV-systeem 5",null,null,null,null,0]
["PV-systeem 6",null,null,null,null,0]
["PV-systeem 7",null,null,null,null,0]
["PV-systeem 8",null,null,null,null,0]
["PV-systeem 9",null,null,null,null,{"$f":"(B11*E11)/1000","v":0}]
["PV-systeem 10",null,null,null,null,{"$f":"(B12*E12)/1000","v":0}]
["PV-systeem 11",null,null,null,null,0]
["PV-systeem 12",null,null,null,null,0]
["PV-systeem 13",null,null,null,null,0]
["PV-systeem 14",null,null,null,null,0]
["PV-systeem 15",null,null,null,null,0]
["PV-systeem 16",null,null,null,null,0]
["Totaal",{"$f":"(SUM(B3:B18))","v":0},null,null,null,{"$f":"(SUM(F3:F18))","v":0}]
[null,"B19 = C15 in het Outputblad",null,null,null,"F19 = C17 in het Outputblad"]
[]
[]
[]
[]
[]
[]
[]
[]
[]
[]
[]
[]
[]
[]
[]
[]
[]
[]
[]
[]
[]
[]
[]
[]
[]
[]
[]
[]
[]
[]
[]
[]
[]
[]
[]
[]
[null,200,"West",10,450]
[null,100,"Zuid-oost",10,100]
[null,11,"Zuid",22,2]
[null,11,"Noord-oost",22,2]
[null,11,"West",33,222]
[null,11,"Noord",33,22]
[null,11,"Zuid",33,55]
[null,22,"West",44,55]